{"text_format":"1","workbook":"xlsx","n_sheets":1,"sheets":["BCC IATIC3"],"not_rendered":{"charts":0,"images":1,"macros":0,"external_links":0,"defined_names":1,"comments":0,"pivot_tables":0},"unopened":[],"bounds":{"document_bytes":16777216,"sheet_cells":100000,"rows_first":2000,"rows_last":500,"rows_between":2000,"halvings":0,"cell_chars":16384,"cell_head_chars":4096},"cells_cut":0,"cells_raw":0,"read":"whole","date_system":"1900"}

{"sheet":"BCC IATIC3","index":0,"n_rows":55,"n_cols":24,"rows_kept":55,"cut":false,"hidden":false,"merged":[[54,10,54,11],[11,0,15,0],[11,2,15,2],[11,4,15,4],[9,0,9,23],[11,13,15,13],[11,3,15,3],[13,7,15,7],[11,1,15,1],[13,10,15,10],[13,11,15,11],[11,5,15,5],[11,6,15,6],[13,8,15,8],[13,9,15,9],[11,12,15,12],[7,0,7,2],[5,0,5,2],[4,0,4,2],[7,9,7,16],[6,9,6,16],[5,9,5,16],[53,5,53,6],[3,9,3,16],[2,9,2,16],[1,9,1,16],[0,9,0,16]]}
[null,null,null,null,null,null,null,null,null,"ACCREDITATION 2020 - 2024"]
[null,null,null,null,null,null,null,null,null,"MAQUETTE ET MODALITES DE CONTRÔLE DES CONNAISSANCES ET COMPETENCES"]
[null,null,null,null,null,null,null,null,null,"Formation en BCC PHASE PRELIMINAIRE"]
["Composante : ","ISTY",null,null,null,null,null,null,null,"Année universitaire 2020 / 2021"]
["Adopté par le conseil de composante le :",null,null,"2020-03-12"]
["Adopté par la CFVU en date du :",null,null,null,null,null,null,null,null,"1èere année"]
[null,null,null,null,null,null,null,null,null,"Intitulé de la mention : IATIC3, 1ère année du cycle ingénieur informatique"]
["Régime d'inscription (FI - FA - FC) :",null,null,"FI",null,null,null,null,null,"Intitulé du parcours type (si existant) : Informatique"]
[]
[" \nPour toutes les UEs, le seuil de compensation est fixé à une note supérieure ou égale à 7/20.\nPour tous les BCCs, le seuil de compensation est fixé à une note supérieure ou égale à 10/20.\n\nLe stage ainsi que les 2 projets pédagogiques ou/et multidisciplinaires ne sont ni compensables, ni compensants. \n\nLe semestre 1 est validé si la note de chaque UE et de chaque BCC est supérieure à son seuil de compensation.\nLe semestre 2 est validé si \n     * la note de chaque UE et de chaque BCC est supérieure à son seuil de compensation\net si\n     * le stage - de 4 semaines minimum - est validé.\n\nL'année est acquise si les deux semestres sont validés.           \n                    \n                    \n               "]
[]
["code","Bloc annualisé (A) ou semestrialisé (S)","intitulé","intitulé en anglais","Obligatoire /optionnel","Nom responsable","cocher si reponsables extérieur de l'UVSQ","Volumes horaires",null,null,null,null,"Total  horaire ","ECTS = coefficient","Modalités de contrôle des connaissances et compétences"]
[null,null,null,null,null,"Responsable",null,"Présentiel",null,null,null,"Distanciel",null,null,"1ère session",null,null,null,null,null," 2nde chance"]
[null,null,null,null,null,null,null,"CM","TD","TP","Total présentiel","Nbre d'heures",null,null,"Type de contrôle",null,null,null,null,null,"Type de contrôle"]
[null,null,null,null,null,null,null,null,null,null,null,null,null,null,"Contrôle continu",null,"Examen terminal",null,"TP",null,"2nd session",null,"Autres"]
[null,null,null,null,null,null,null,null,null,null,null,null,null,null,"%","Type d'épreuve","%","Type d'épreuve","%","Type d'épreuve","%","Type d'épreuve","%","Type d'épreuve"]
["18ESB1","S","Enseignements scientifiques de base 1","Basic scientific teaching 1",null,null,null,null,null,null,{"$f":"SUM(K18:K20)","v":130.5},{"$f":"SUM(L18:L20)","v":0},130.5,9]
["19ESBAAS","S1","Algorithmique et application  à la sécurité","Algorithmics and security","Obligatoire","L. Pilard",null,16.5,27,0,{"$f":"SUM(H18:J18)","v":43.5},0,{"$f":"SUM(K18:L18)","v":43.5},3,100,"Ecrit",null,null,null,null,100,"Ecrit ou oral"]
["19ESBLTC","S1","Logique mathématique et théorie de la complexité","Mathematical logic and complexity theory","Obligatoire","J. Patarin",null,16.5,27,0,{"$f":"SUM(H19:J19)","v":43.5},0,{"$f":"SUM(K19:L19)","v":43.5},3,100,"Ecrit",null,null,null,null,100,"Ecrit ou oral"]
["18ESBPHY","S1","Physique","Physics","Obligatoire","J. Deparis",null,16.5,27,0,43.5,0,43.5,3,100,"Ecrit",null,null,null,null,100,"Ecrit ou oral"]
["18SDI1","S","Sciences de l'ingénieur 1","Engineering Sciences 1 ",null,null,null,null,null,null,{"$f":"SUM(K22:K24)","v":130.5},{"$f":"SUM(L22:L24)","v":0},130.5,9]
["18SDIFR","S1","Fondements des réseaux","Networking Fundamentals","Obligatoire","M. Gueroui",null,16.5,27,0,{"$f":"SUM(H22:J22)","v":43.5},0,{"$f":"SUM(K22:L22)","v":43.5},3,100,"Ecrit",null,null,null,null,100,"Ecrit ou oral"]
["18SDISF","S1","Spécifications Formelles","Formal specification","Obligatoire","J.G. Sayous",null,16.5,27,0,{"$f":"SUM(H23:J23)","v":43.5},0,43.5,3,100,"Ecrit",null,null,null,null,100,"Ecrit ou oral"]
["18SDISTO","S1","Structure des ordinateurs","Computer architecture","Obligatoire","W. Jalby",null,16.5,27,0,43.5,0,43.5,3,100,"Ecrit",null,null,null,null,100,"Ecrit ou oral"]
["18SHM1","S","Sciences humaines et managériales 1","Social and managerial sciences 1",null,null,null,null,null,null,{"$f":"SUM(K26:K29)","v":116},{"$f":"SUM(L26:L29)","v":0},116,9]
["18SHEEO","S1","Expression Écrite et Orale","Communication","Obligatoire","J. Perruchione","x",18,18,0,{"$f":"SUM(H26:J26)","v":36},0,{"$f":"SUM(K26:L26)","v":36},3,100,"Ecrit ou oral",null,null,null,null,100,"Ecrit ou oral"]
["18SHIGE","S1","Introduction à la gestion d'entreprise","Entreprise operations","Obligatoire","M.-A. Gosselin","x",15,21,0,{"$f":"SUM(H27:J27)","v":36},0,36,3,100,"Ecrit",null,null,null,null,100,"Ecrit ou oral"]
["18SHANS5","S1","Anglais - S5","English","Obligatoire","F. Zah",null,0,30,0,30,0,30,2,100,"Ecrit",null,null,null,null,100,"Ecrit ou oral"]
["18SHLVS5","S1","Langue Vivante 2 -S5","Second Lliving Foreign Language","Obligatoire","L. Pilard",null,0,14,0,14,0,14,1,100,"Ecrit",null,null,null,null,100,"Ecrit ou oral"]
["18PRO1","S","Projets 1","Projects 1",null,null,null,null,null,null,{"$f":"K31","v":20},{"$f":"L31","v":20},40,3]
["18PROS5","S1","Projets pédagogiques ou/et multidisciplinaires – S5","Projects","Obligatoire","D. Abouda,  R. Gueroui, F. Calcado",null,0,20,0,20,20,{"$f":"K31+L31","v":40},3,100,"Ecrit et oral",null,null,null,null,100,"Ecrit et oral"]
["18SDI2","S","Sciences de l'ingénieur 2","Engineering Sciences 2",null,null,null,null,null,null,{"$f":"SUM(K33:K36)","v":130.5},{"$f":"SUM(L33:L36)","v":0},130.5,{"$f":"SUM(N33:N36)","v":10}]
["18SDIBDB","S2","Bases de données - Bases","Database - Basics","Obligatoire","K. Lahlou","x",16.5,27,0,43.5,0,{"$f":"SUM(K33:L33)","v":43.5},3,100,"Ecrit",null,null,null,null,100,"Ecrit ou oral"]
["18SDISEB","S2","Système d'exploitation - Bases","Operating system - Basics","Obligatoire","F. Calcado",null,16.5,27,0,43.5,0,{"$f":"SUM(K34:L34)","v":43.5},3,100,"Ecrit",null,null,null,null,100,"Ecrit ou oral"]
["19SDIMSI","S2","Modélisation des systèmes d'information","Information systems modeling","Obligatoire","K. Lahlou","x",9,15,0,24,0,{"$f":"SUM(K35:L35)","v":24},2,100,"Ecrit",null,null,null,null,100,"Ecrit ou oral"]
["18SDITOI","S2","Techniques et outils d’ingénierie du logiciel"," Techniques and Software Engineering tools","Obligatoire","K. Lahlou","x",7.5,12,0,19.5,0,{"$f":"SUM(K36:L36)","v":19.5},2,100,"Ecrit",null,null,null,null,100,"Ecrit ou oral"]
["18ESB2","S","Enseignements scientifiques de base 2","Basic scientific teaching 2",null,null,null,null,null,null,{"$f":"SUM(K38:K40)","v":130.5},{"$f":"SUM(L38:L40)","v":0},130.5,9]
["18ESBAA","S2","Algorithmique - Approfondissement","Algorithms - Advanced","Obligatoire","I. Tseveendorj",null,16.5,27,0,{"$f":"SUM(H38:J38)","v":43.5},0,{"$f":"SUM(K38:L38)","v":43.5},3,100,"Ecrit",null,null,null,null,100,"Ecrit ou oral"]
["18ESBOO","S2","Programmation orientée-objet","Object-oriented programming","Obligatoire"," D. Abouda","x",16.5,27,0,{"$f":"SUM(H39:J39)","v":43.5},0,{"$f":"SUM(K39:L39)","v":43.5},3,100,"Ecrit",null,null,null,null,100,"Ecrit ou oral"]
["18ESBPST","S2","Probabilités et théorie des ensembles","Probabilities and set theory","Obligatoire","J. Patarin",null,16.5,27,0,43.5,0,43.5,3,100,"Ecrit",null,null,null,null,100,"Ecrit ou oral"]
["18SHM2","S","Sciences humaines et managériales 2","Social and managerial sciences 2",null,null,null,null,null,null,{"$f":"SUM(K42:K44)","v":83},{"$f":"SUM(L42:L44)","v":0},83,6]
["18SHGFE","S2","Grandes fonctions de l'entreprise,  gestion des ressources","Business functions and ressources management","Obligatoire","M.-A. Gosselin","x",18,21,0,{"$f":"SUM(H42:J42)","v":39},0,39,3,100,"Ecrit",null,null,null,null,100,"Ecrit ou oral"]
["18SHANS6","S2","Anglais - S6","English","Obligatoire","F. Zah",null,0,30,0,30,0,30,2,100,"Ecrit et oral",null,null,null,null,100,"Ecrit ou oral"]
["18SHLV6","S2","LV2 – S6","Second Lliving Foreign Language","Obligatoire","Potier, Mihesso, Zhu",null,0,14,0,14,0,14,1,100,"Ecrit",null,null,null,null,100,"Ecrit ou oral"]
["18PRO2","S","Projets 2","Projects 2",null,null,null,null,null,null,{"$f":"K46","v":20},{"$f":"L46","v":20},40,3]
["18PROS6","S2","Projets pédagogiques ou/et multidisciplinaires – S6","Projects","Obligatoire","D. Abouda, F. Calcado",null,0,20,0,{"$f":"SUM(H46:J46)","v":20},20,40,3,100,"Ecrit et oral",null,null,null,null,100,"Ecrit et oral"]
["19STAGE","S","Stage 1","Traineeship 1",null,null,null,null,null,null,{"$f":"K48","v":0},{"$f":"L48","v":0},0,2]
["19STAGE","S2","Stage  en entreprise semestre 6 (4 semaines)","Traineeship 6th semester ","Obligatoire","S. Kallel",null,0,0,0,{"$f":"SUM(H48:J48)","v":0},0,0,2,100,"Ecrit",null,null,null,null,"non","non"]
["20OPEN","A","Ouverture","Opening",null,null,null,null,null,null,{"$f":"SUM(K50:K53)","v":24},{"$f":"SUM(L50:L53)","v":6},30,10]
["PROTRANS","A","Projets transverses","Transversal Project","Optionnel","F. Calcado",null,0,16,0,16,0,16,1,100,null,null,null,null,null,"?","?"]
["TEVA","A","Engagement et vie associative","Commitment and community life","Optionnel","F. Misguich",null,8,0,0,8,6,14,3,70,"oral+écrit",30,"QCM+CROQ"]
["TAPS","A","Théorie et pratique des activités physiques et sportives","Theory and practice of physical and sports activities","Optionnel",null,null,null,null,null,null,null,null,3]
["TCPA","A","Culture - pratiques artistiques","Culture - artistic practices","Optionnel",null,null,null,null,null,null,null,null,3]
[null,null,null,null,null,"Total heures maquette  ",null,{"$f":"SUM(H18:H20,H22:H24,H31,H33:H36,H38:H40,H26:H29,H42:H44,H46,H48)","v":249},{"$f":"SUM(I18:I20,I22:I24,I31,I33:I36,I38:I40,I26:I29,I42:I44,I46,I48)","v":512},{"$f":"SUM(J18:J20,J22:J24,J31,J33:J36,J38:J40,J26:J29,J42:J44,J46,J48)","v":0},{"$f":"K17+K21+K25+K30+K32+K37+K41+K45+K47","v":761},{"$f":"L17+L21+L25+L30+L32+L37+L41+L45+L47","v":40},{"$f":"M17+M21+M25+M30+M32+M37+M41+M45+M47","v":801},{"$f":"N17+N21+N25+N30+N32+N37+N41+N45+N47","v":60}]
[null,null,null,null,null,null,null,null,null,null,"Total heures étudiants  ",null,{"$f":"K54+L54","v":801}]